Cogmind - Beta 14 @@@ ROGUE MODE // 2024.09.29 @ 11:30:01 Player: Dazz Result: Destroyed by Y-45 Defender with Heavy Assault Rifle Performance ------------- Evolutions (1) 500 Regions Visited (3) 600 Robots Destroyed (19) 95 Value Destroyed (631) 631 Prototype IDs (2) 40 Alien Tech Used (0) 0 Bonus (22) 22 TOTAL SCORE: 1888 Bonus ------- Follower Combat Kills 35 Friendly Fire -13 Cogmind --------- Core Integrity 0/400 Matter 286/300 Energy 99/100 System Corruption 0% Temperature Cool (0) Movement Core (100) Ox1 Location -9/Materials Parts ------- > --- POWER (2) -------- (None) > --- PROPULSION (2) --- (None) > --- UTILITY (2) ------ Small Storage Unit > --- WEAPON (3) ------- (None) > --- INVENTORY (8) ---- Large Storage Unit Advanced Visual Processing Unit Makeshift System Shield Ion Cannon Peak State ------------ > --- POWER ------------ Ion Engine > --- PROPULSION ------- Improved Aluminum Leg Improved Aluminum Leg > --- UTILITY ---------- Small Storage Unit Experimental Sensor Array > --- WEAPON ----------- Heavy EM Shotgun Ion Cannon Ion Cannon > --- INVENTORY -------- Large Storage Unit Advanced Visual Processing Unit Makeshift System Shield Heavy EM Shotgun Assault Rifle [Rating: 26] Favorites ----------- Power Light Ion Engine Engine Light Ion Engine Propulsion Aluminum Leg Leg Aluminum Leg Utility Small Storage Unit Device Experimental Sensor Array Storage Small Storage Unit Weapon Assault Rifle Energy Gun Heavy EM Shotgun Energy Cannon Ion Cannon Ballistic Gun Assault Rifle Ballistic Cannon Light Cannon Launcher Grenade Launcher Build | -11 -10 -10 -9 ------- Run | Yrd Mat Min Mat Slots Evolved 2 | . . . 2 Power 1 | . . . 1 Propulsion . | . . . . Utility . | . . . . Weapon 1 | . . . 1 Parts Attached 23 | 6 . 8 9 Power 3 | 1 . 2 . Engine 3 | 1 . 2 . Core . | . . . . Reactor . | . . . . Propulsion 6 | 2 . 1 3 Treads . | . . . . Leg 6 | 2 . 1 3 Wheel . | . . . . Hover . | . . . . Flight . | . . . . Utility 3 | 1 . 2 . Device 2 | . . 2 . Storage 1 | 1 . . . Processor . | . . . . Hackware . | . . . . Protection . | . . . . Artifact . | . . . . Weapon 11 | 2 . 3 6 Energy Gun 2 | . . . 2 Energy Cannon 2 | . . . 2 Ballistic Gun 5 | 2 . 1 2 Ballistic Cannon 1 | . . 1 . Launcher 1 | . . 1 . Special Weapon . | . . . . Impact Weapon . | . . . . Slashing Weapon . | . . . . Piercing Weapon . | . . . . Special Melee Weapon . | . . . . Unidentified Prototypes 2 | . . 1 1 Parts Lost 9 | . . . 9 Power 1 | . . . 1 Propulsion 3 | . . . 3 Utility 1 | . . . 1 Weapon 4 | . . . 4 Highest Loss Streak 7 | . . . 7 To Critical Strikes . | . . . . Average Slot Usage (%) 83 | . 85 93 71 Engine 11 | . 14 13 8 Leg 24 | . 28 28 18 Device 6 | . . 8 8 Storage 12 | . 14 14 11 Energy Gun 2 | . . . 7 Energy Cannon 2 | . . . 7 Ballistic Gun 18 | . 28 23 7 Launcher 3 | . . 4 2 Peak Build Rating 26 | 6 6 16 26 Average Rating 12 | 3 6 10 18 On Entrance 6 | . 6 6 15 Naked Turns . | . . . . Heaviest Build 27 | 11 11 16 27 Greatest Support 26 | 20 20 20 26 Greatest Overweight (x) 4 | . . 1 4 Average Overweight (x) . | . . . . Largest Inventory Capacity 8 | 8 8 8 8 Average Capacity 7 | 7 8 8 8 Most Carried 8 | 3 8 8 8 Average Carried 6 | 1 5 7 5 Final Capacity 8 | 8 8 8 8 Final Carried 8 | 1 8 5 4 Class Distribution -------------------- 80% | Mutant 19% | Skirmisher Dominant Class ---------------- Mutant | -10/Materials Mutant | -10/Mines Skirmisher | -9/Materials Resources | -11 -10 -10 -9 ----------- Run | Yrd Mat Min Mat Matter Collected 552 | 242 50 193 67 Remotely . | . . . . Salvage Created 700 | . 128 286 286 Parts 41 | . 6 18 17 Haulers Intercepted . | . . . . Recyclers Shooed 1 | . . . 1 Parts Field Recycled . | . . . . Retrieved Matter . | . . . . Parts Self-Destructed . | . . . . Prevented . | . . . . Kills | -11 -10 -10 -9 ------- Run | Yrd Mat Min Mat Combat Hostiles Destroyed 18 | . 2 10 6 Guns 13 | . 2 8 3 Cannons 3 | . . . 3 AOE 2 | . . 2 . Classes Destroyed 5 | . 2 1 2 Watcher 1 | . 1 . . Swarmer 4 | . . 3 1 Grunt 11 | . 2 7 2 Duelist 2 | . . . 2 Sentry 1 | . . . 1 Best Kill Streak 4 | . 1 4 2 Combat Bots Only 4 | . 1 4 2 Max Kills in Single Turn 2 | . 1 2 1 Gunslinging . | . . . . Exploded 2 | . . 2 . Melee . | . . . . Uniques/NPCs Destroyed . | . . . . Combat | -11 -10 -10 -9 -------- Run | Yrd Mat Min Mat Hostile Shots Fired 217 | . 6 29 182 Missed 69 | . 2 6 61 Damage Taken 1656 | . 53 273 1330 Core 476 | . . 72 404 Absorbed by Shields . | . . . . Core Remaining (%) 85 | 100 . 71 . Volleys Fired 56 | . 8 25 23 Largest 3 | . 2 2 3 Hottest 170 | . 40 50 170 Shots Fired 100 | . 16 37 47 Gun 78 | . 16 33 29 Cannon 18 | . . . 18 Launcher 4 | . . 4 . Special . | . . . . Kinetic 61 | . 16 33 12 Thermal 18 | . . . 18 Explosive 4 | . . 4 . Electromagnetic 17 | . . . 17 Robot Hit Streak 10 | . 10 10 9 Robot Miss Streak 5 | . 1 2 5 Penetration Max . | . . . . Secondary Targets 2 | . . 2 . Max Gunslinging Chain 1 | . . 1 . Shots Hit Robots 71 | . 13 24 34 Core Hits 41 | . 8 17 16 Critical Kills . | . . . . Critical Parts Destroyed . | . . . . Critical Strikes . | . . . . Melee Attacks . | . . . . Impact . | . . . . Slashing . | . . . . Piercing . | . . . . Sneak Attacks . | . . . . Combat Hostiles . | . . . . Follow-up Attacks . | . . . . Damage Inflicted 1335 | . 126 511 698 Guns 791 | . 126 260 405 Cannons 277 | . . . 277 Explosions 251 | . . 251 . Melee . | . . . . Ramming 16 | . . . 16 Kinetic 528 | . 126 260 142 Thermal 277 | . . . 277 Explosive 251 | . . 251 . Electromagnetic 263 | . . . 263 Impact . | . . . . Slashing . | . . . . Piercing . | . . . . Highest Corruption . | . . . . Average Corruption . | . . . . Corruption Purged . | . . . . Corruption Blocked . | . . . . Overload Shots . | . . . . Overflow Damage . | . . . . Projectiles . | . . . . Explosions . | . . . . Melee . | . . . . Knockbacks . | . . . . Impact . | . . . . Kinetic . | . . . . Secondary . | . . . . Self-Inflicted Damage 26 | . . 26 . Shots 1 | . . 1 . Rammed . | . . . . Targets Rammed 4 | . . . 4 Kicked 4 | . . . 4 Crushed . | . . . . Highest Temperature 490 | . 9 11 490 Average Temperature 175 | . 7 6 189 Received Heat Transfer 489 | . 30 96 363 Effects 5 | . . . 5 Shutdowns 2 | . . . 2 Energy Bleed 1 | . . . 1 Interference 2 | . . . 2 Siege Activations . | . . . . Robots Corrupted . | . . . . Combat Hostiles . | . . . . Parts Fried . | . . . . Impact Corruptions . | . . . . Robots Melted . | . . . . Combat Hostiles . | . . . . Parts Melted 1 | . . . 1 Heat Transferred 444 | . . . 444 Parts Sabotaged . | . . . . Parts Stolen . | . . . . Parts Stripped . | . . . . Power Chain Reactions . | . . . . Alert | -11 -10 -10 -9 ------- Run | Yrd Mat Min Mat Peak Influence 200 | . 102 192 200 Initial 74 | . . 39 74 Average 99 | . 50 105 126 Maximum Alert Level 1 | . . . 1 Low Security (%) 87 | 100 100 100 65 Level 1 12 | . . . 34 Level 2 . | . . . . Level 3 . | . . . . Level 4 . | . . . . Level 5 . | . . . . High Security . | . . . . Max Security . | . . . . Squads Dispatched 2 | . . . 2 Investigation 1 | . . . 1 Extermination . | . . . . Reinforcement 1 | . . . 1 Assault . | . . . . Garrison . | . . . . Intercept . | . . . . Searches Triggered . | . . . . Construction Impeded . | . . . . Haulers Reinforced . | . . . . Active Scanning Responses . | . . . . Cargo Convoy Interrupts . | . . . . Stealth | -11 -10 -10 -9 --------- Run | Yrd Mat Min Mat Distress Signals 3 | . . . 3 Communications Jammed . | . . . . Distress Signals . | . . . . Times Spotted 43 | . 4 11 28 Peak Tracking Total 13 | . 2 2 13 Tactical Retreats 6 | . . . 6 Traps | -11 -10 -10 -9 ------- Run | Yrd Mat Min Mat Traps Triggered . | . . . . Indirectly . | . . . . Trap Hack Attempts . | . . . . Triggered . | . . . . Disarmed . | . . . . Reprogrammed . | . . . . Reused . | . . . . Traps Extracted . | . . . . Installed . | . . . . Triggered . | . . . . Machines | -11 -10 -10 -9 ---------- Run | Yrd Mat Min Mat Machines Disabled 1 | . . 1 . Max in Single Turn 1 | . . 1 . Machines Repaired . | . . . . Machines Dismantled . | . . . . Machines Sabotaged . | . . . . Overloaded Fab Kills . | . . . . Hacking | -11 -10 -10 -9 --------- Run | Yrd Mat Min Mat Machines Accessed 3 | . 2 . 1 Terminals 3 | . 2 . 1 Fabricators . | . . . . Repair Stations . | . . . . Recycling Units . | . . . . Scanalyzers . | . . . . Garrison Access . | . . . . Total Hacks 5 | . 2 . 3 Successful 3 | . 1 . 2 Failed 2 | . 1 . 1 Catastrophic 1 | . 1 . . Database Lockouts . | . . . . Manual . | . . . . Terminals 5 | . 2 . 3 Fabricators . | . . . . Repair Stations . | . . . . Recycling Units . | . . . . Scanalyzers . | . . . . Garrison Access . | . . . . Terminal Hacks 3 | . 1 . 2 Record 3 | . 1 . 2 Fabricator Hacks . | . . . . Repair Station Hacks . | . . . . Recycling Unit Hacks . | . . . . Scanalyzer . | . . . . Garrison Access Hacks . | . . . . Unauthorized Hacks . | . . . . Terminals . | . . . . Fabricators . | . . . . Repair Stations . | . . . . Recycling Units . | . . . . Scanalyzers . | . . . . Garrison Access . | . . . . Data Cores Recovered . | . . . . Used . | . . . . Hacking Detections 2 | . 1 . 1 Full Trace Events 1 | . . . 1 Feedback Events . | . . . . Feedback Blocked . | . . . . Robot Schematics Acquired . | . . . . Robots Built . | . . . . Authchips . | . . . . Time . | . . . . Total Robot Build Rating . | . . . . Part Schematics Acquired . | . . . . Parts Built . | . . . . Authchips . | . . . . Time . | . . . . Total Part Build Rating . | . . . . Parts Repaired . | . . . . Time . | . . . . Parts Recycled . | . . . . Recycled Matter . | . . . . Retrieved Matter . | . . . . Retrieved Components . | . . . . Parts Scanalyzed . | . . . . Part Schematics Acquired . | . . . . Parts Damaged . | . . . . Bothacking | -11 -10 -10 -9 ------------ Run | Yrd Mat Min Mat Used RIF Installer . | . . . . Robots Hacked . | . . . . Non-combat . | . . . . Combat . | . . . . Robot Hacks Applied . | . . . . Relay Couplers Released . | . . . . Fabnet Peak Effective % . | . . . . Robots Rewired . | . . . . Allies Hacked . | . . . . Hacks Repelled . | . . . . Allies | -11 -10 -10 -9 -------- Run | Yrd Mat Min Mat Total Allies 2 | . . 2 . Largest Group 2 | . . 2 . Highest-Rated Group 46 | . . 46 . Highest-Rated Ally 31 | . . 31 . Total Orders . | . . . . Ally Attacks 6 | . . 6 . Total Damage 85 | . . 85 . Kills 1 | . . 1 . Allies Corrupted . | . . . . Allies Melted . | . . . . Intel | -11 -10 -10 -9 ------- Run | Yrd Mat Min Mat Robot Analysis Total . | . . . . Derelict Logs Recovered 1 | . . 1 . Drone Launches . | . . . . Drone Recoveries . | . . . . Exploration | -11 -10 -10 -9 ------------- Run | Yrd Mat Min Mat Turns Passed 1641 | 58 285 729 569 Spaces Moved 918 | 42 171 472 233 Core 36 | 7 . . 29 Treads . | . . . . Legs 882 | 35 171 472 204 Wheels . | . . . . Hover . | . . . . Flight . | . . . . Fastest Speed 50 | 50 120 120 100 Average Speed 120 | 108 120 120 124 Slowest Speed 260 | 120 120 190 260 Overloaded Moves . | . . . . Propulsion Burnouts . | . . . . Robots Hopped . | . . . . Cave-ins Triggered . | . . . . Exploration Rate (%) 35 | 3 29 84 26 Regions Visited 3 Branch Regions 1 Pre-discovered Areas . | . . . . Known Exits Taken . | . . . . Unknown Exits Taken 3 | 1 1 1 . Scrap Searched 1 | . . 1 . Spaces Dug . | . . . . Terrain Destroyed 32 | . . 31 1 Melee . | . . . . Projectile 1 | . . . 1 AOE 31 | . . 31 . Terrain Rammed . | . . . . Walls Destroyed . | . . . . Machines Disabled . | . . . . Actions | -11 -10 -10 -9 --------- Run | Yrd Mat Min Mat Total 1373 | 54 236 605 478 Wait 323 | . 51 82 190 Move 915 | 41 170 471 233 Hop . | . . . . Pick Up 28 | 7 7 6 8 Fast Attach . | . . . . Attach 23 | 6 . 8 9 Detach 10 | . . 5 5 Swap . | . . . . Drop 14 | . . 8 6 Fire 56 | . 8 25 23 Melee . | . . . . Ram . | . . . . Kick 4 | . . . 4 Crush . | . . . . Escape Stasis . | . . . . Rewire . | . . . . Trap . | . . . . Miscellaneous . | . . . . Route ------- -11/Scrapyard -10/Materials -10/Mines (discovered 2 exits: *Mat x2) -9/Materials (discovered 1 exit: [*Min]) History --------- Turn | Location | Event 5 | -11/Scrapyard | Discovered new exit (range 15) 59 | -11/Scrapyard | Entered Materials 309 | -10/Materials | Build established: Mutant 310 | -10/Materials | Discovered new exit (range 8) 344 | -10/Materials | Entered Mines 569 | -10/Mines | Learned Materials stockpile data 701 | -10/Mines | Found a damaged Exp. Sensor Array with a note attached 704 | -10/Mines | Found Prototype Device 706 | -10/Mines | Identified Exp. Sensor Array 970 | -10/Mines | Discovered new exit (range 14) 1004 | -10/Mines | Discovered new exit (range 15) 1073 | -10/Mines | Entered Materials 1073 | -9/Materials | Evolved 2 slots: Power x1, Weapon x1 1506 | -9/Materials | Build established: Skirmisher 1523 | -9/Materials | Core integrity fell below 50% 1563 | -9/Materials | Lost 7 parts (1p2n1u3w) 1566 | -9/Materials | Core integrity fell below 20% 1642 | -9/Materials | Discovered new exit (range 16) 1642 | -9/Materials | Destroyed by Y-45 Defender with Heavy Assault Rifle Last Messages --------------- R-06 Scavenger suffers critical hit (Destroy). U-05 Engineer works on Atomic Centrifuge. S-10 Pest destroyed. Exp. Sensor Array destroyed. U-05 Engineer works on Atomic Centrifuge. Acquired 17 matter. U-05 Engineer completes Atomic Centrifuge. Kicked S-10 Pest. K-01 Serf collects debris. K-01 Serf cleans the Atomic Centrifuge. Kicked K-01 Serf. Atomic Centrifuge comes online. K-01 Serf collects debris. Hvy. EM Shotgun destroyed. Kicked K-01 Serf. Imp. Aluminum Leg destroyed. K-01 Serf destroyed. K-01 Serf collects debris. EXIT=FOUND K-01 Serf collects debris. Map ----- +----------------------------------------------------+ | | | ??????????????????????????????????? | | ??????????????????????????????????? | | ??????????????????????????????????? | | ??????????????????????????????????? | | ??????????????????????????????????? | | ??????????????????????????????????? | | ??????????????????????????????????? | | ??????????????????????????????????? | | ??????????????????????????????????? | | ???????? < ???????????????????????? | | ??????? ???????????????????????? | | ??????? ???????????????????????? | | ??????? ???????????????????????? | | ???????# ???????????????????????? | | ???????# ???????????????????????? | | ???????# ???????????????????????? | | ???????# #??????????????????????? | | ??????## #######????????????????? | | ??????# # """?????????????????? | | ??????# a # """?????????????????? | | ??????+ Y # ""??????????????????? | | ??????# # ??????????????????? | | ??????# # ???????????????????? | | ???????# ## ???????????????????? | | ???????# @##+###?????????????????? | | ???????# #?????????????????? | | ???????# #?###########?##??? | | ???????# a #?![ # #??? | | ???????###### # ![ # """ #??? | | ????????????# # ! # R" #??? | | ???????!!! +% k/ # """ #??? | | ?????# !! #= # # #??? | | ?????# ??# # # """ #??? | | ?????# ????# #? # """ #### | | ?????#??????# #?##### """ # | | ????????????# #?????# # | | ????????????# #?????#####+#### | | ????????????# #????????# / | | ????????????# ########## ### | | ????????????# #?# | | ????????????# ########## #?# | | ????????????# #????????# #?# | | ????????????# #????????# #?# | | ????????????# #????????# #?#### | | ????????????# #????????# #????? | | ????????????# #????????# #????? | | ????????????# #????????# #????? | | ????????????# ?????????# #????? | | ????????????# ?????????# #????? | +----------------------------------------------------+ Best States ------------- Heat Dissipation 28 Energy Generation 10 Energy Capacity 250 Matter Stores 300 Matter Capacity 300 Sight Range 16 Robot Scan Range 20 Terrain Scan Density 10 Evasion (%) 55 Item Schematics ----------------- None Robot Schematics ------------------ None Fabricated ------------ Nothing Alien Tech Used ----------------- None Achievements -------------- None Challenges ------------ None Game ------ Seed ThrowingBottomlessCoupler Manual? 0 Play Time 00:44:38 Cumulative 4.6 hours Start 2024.09.29 @ 10:24:31 End 2024.09.29 @ 11:30:01 Sessions 1 Manual Loads 0 Difficulty Rogue Special Mode None Game No. 15 Rogue 15 Adventurer 0 Explorer 0 Win Type - Total 0 Types 0/0/0/0/0/0/0/0/0 Lore% 1 Gallery% 6 Achievement% 8 Wizard Run 0 Options --------- Layout 1 ASCII 0 Keyboard 1 Movement Numpad Keybinds 0 Fullscreen 2 Font 32/SmallcapsGlow Map View 50x35 Zoom Use 0% Tactical HUD 0 Map Filters NONE Filters NONE Steam 1 RUN: 929852f4-f167-48eb-9dee-f821f3bb66a5